[Event "Early-Titled-Tuesday-Blitz-September-05-2023"]
[Site "Chess.com"]
[Date "2023.09.05"]
[Round "1"]
[White "CrushingKings"]
[Black "Hoshka"]
[Result "0-1"]
[WhiteElo "2544"]
[BlackElo "2047"]
[TimeControl "180+1"]
[EndTime "8:06:50 PDT"]
[Termination "Hoshka won on time"]

1. Nf3 {[%clk 0:02:58.3]} 1... d5 {[%clk 0:02:58.1]} 2. g3 {[%clk 0:02:58.2]}
2... Nf6 {[%clk 0:02:57.7]} 3. Bg2 {[%clk 0:02:58.3]} 3... e6 {[%clk 0:02:57.6]}
4. O-O {[%clk 0:02:58.3]} 4... Be7 {[%clk 0:02:57.2]} 5. c4 {[%clk 0:02:58.6]}
5... O-O {[%clk 0:02:56.1]} 6. b3 {[%clk 0:02:58.6]} 6... c5 {[%clk 0:02:55.3]}
7. cxd5 {[%clk 0:02:58]} 7... Nxd5 {[%clk 0:02:54.9]} 8. d4 {[%clk 0:02:56.4]}
8... Nc6 {[%clk 0:02:49.7]} 9. Bb2 {[%clk 0:02:56.2]} 9... Bf6 {[%clk
0:02:47.2]} 10. e4 {[%clk 0:02:51.6]} 10... Nc7 {[%clk 0:02:43.2]} 11. e5 {[%clk
0:02:47.9]} 11... Be7 {[%clk 0:02:42.7]} 12. dxc5 {[%clk 0:02:34.5]} 12... Bxc5
{[%clk 0:02:38.2]} 13. Nbd2 {[%clk 0:02:23]} 13... Nd5 {[%clk 0:02:33.4]} 14.
Ne4 {[%clk 0:02:20.3]} 14... Be7 {[%clk 0:02:33]} 15. a3 {[%clk 0:02:15.6]}
15... b6 {[%clk 0:02:25.9]} 16. Rc1 {[%clk 0:02:13.6]} 16... Bb7 {[%clk
0:02:24.6]} 17. Qe2 {[%clk 0:02:13.1]} 17... Qd7 {[%clk 0:01:47.8]} 18. Rfd1
{[%clk 0:02:10.7]} 18... Rfd8 {[%clk 0:01:40.1]} 19. b4 {[%clk 0:02:06.8]} 19...
Qe8 {[%clk 0:01:39.3]} 20. h4 {[%clk 0:02:00.3]} 20... h6 {[%clk 0:01:37.5]} 21.
Nd6 {[%clk 0:01:17.9]} 21... Bxd6 {[%clk 0:01:29.4]} 22. exd6 {[%clk 0:01:18.8]}
22... Rxd6 {[%clk 0:01:20.2]} 23. b5 {[%clk 0:01:18.2]} 23... Nce7 {[%clk
0:01:10]} 24. Qe5 {[%clk 0:00:44.9]} 24... Nf5 {[%clk 0:00:53.2]} 25. g4 {[%clk
0:00:44.9]} 25... f6 {[%clk 0:00:48.6]} 26. Qh2 {[%clk 0:00:45.5]} 26... e5
{[%clk 0:00:26.3]} 27. gxf5 {[%clk 0:00:39.4]} 27... Rad8 {[%clk 0:00:24.9]} 28.
a4 {[%clk 0:00:06.3]} 28... Qh5 {[%clk 0:00:22.6]} 0-1

[Event "Early-Titled-Tuesday-Blitz-September-05-2023"]
[Site "Chess.com"]
[Date "2023.09.05"]
[Round "1"]
[White "Tsyhanchuk_Stanislav"]
[Black "psychokiller48"]
[Result "0-1"]
[WhiteElo "2403"]
[BlackElo "2706"]
[TimeControl "180+1"]
[EndTime "8:06:51 PDT"]
[Termination "psychokiller48 won by resignation"]

1. c4 {[%clk 0:03:00.9]} 1... e6 {[%clk 0:02:58.9]} 2. Nc3 {[%clk 0:03:00.5]}
2... d5 {[%clk 0:02:59.5]} 3. cxd5 {[%clk 0:03:00.6]} 3... exd5 {[%clk
0:02:59.7]} 4. d4 {[%clk 0:03:01.2]} 4... c6 {[%clk 0:03:00.1]} 5. Nf3 {[%clk
0:03:00]} 5... Bf5 {[%clk 0:02:59.2]} 6. Bg5 {[%clk 0:02:57.3]} 6... Be7 {[%clk
0:02:57.3]} 7. Bf4 {[%clk 0:02:36.9]} 7... Nf6 {[%clk 0:02:54.9]} 8. e3 {[%clk
0:02:36.7]} 8... O-O {[%clk 0:02:54.2]} 9. Bd3 {[%clk 0:02:35.2]} 9... Bxd3
{[%clk 0:02:54]} 10. Qxd3 {[%clk 0:02:34.9]} 10... Bd6 {[%clk 0:02:54.6]} 11.
O-O {[%clk 0:02:26.5]} 11... Qe7 {[%clk 0:02:50.1]} 12. Rab1 {[%clk 0:01:58.3]}
12... a5 {[%clk 0:02:47]} 13. a3 {[%clk 0:01:58.2]} 13... Nbd7 {[%clk
0:02:46.6]} 14. Bxd6 {[%clk 0:01:51.4]} 14... Qxd6 {[%clk 0:02:47.5]} 15. b4
{[%clk 0:01:51.6]} 15... axb4 {[%clk 0:02:46.5]} 16. axb4 {[%clk 0:01:52.5]}
16... b5 {[%clk 0:02:46.7]} 17. Qc2 {[%clk 0:01:41.8]} 17... Ra3 {[%clk
0:02:37.8]} 18. h4 {[%clk 0:01:11.7]} 18... Rfa8 {[%clk 0:02:31.8]} 19. g3
{[%clk 0:01:11.8]} 19... g6 {[%clk 0:02:25]} 20. Kg2 {[%clk 0:01:08.3]} 20...
Kg7 {[%clk 0:02:23.4]} 21. e4 {[%clk 0:01:01]} 21... dxe4 {[%clk 0:02:22.6]} 22.
Nxe4 {[%clk 0:01:01.9]} 22... Nxe4 {[%clk 0:02:22.4]} 23. Qxe4 {[%clk
0:01:02.8]} 23... Nf6 {[%clk 0:02:21.6]} 24. Qe5 {[%clk 0:00:48.4]} 24... Qd5
{[%clk 0:02:19.8]} 25. Qxd5 {[%clk 0:00:45.8]} 25... Nxd5 {[%clk 0:02:20.7]} 26.
Rfc1 {[%clk 0:00:41.7]} 26... Nc3 {[%clk 0:01:37.7]} 27. Rb2 {[%clk 0:00:40.3]}
27... Rd8 {[%clk 0:01:26.1]} 28. Rbc2 {[%clk 0:00:34.7]} 28... Nd5 {[%clk
0:01:14.8]} 29. Rxc6 {[%clk 0:00:18.9]} 29... Nxb4 {[%clk 0:01:13.7]} 30. R6c5
{[%clk 0:00:18.6]} 30... Nd3 {[%clk 0:01:11.7]} 31. R5c3 {[%clk 0:00:16.9]}
31... b4 {[%clk 0:01:10.2]} 32. Rxa3 {[%clk 0:00:16.8]} 32... bxa3 {[%clk
0:01:11.1]} 33. Rc3 {[%clk 0:00:16.3]} 33... Ra8 {[%clk 0:01:06.3]} 34. Rxd3
{[%clk 0:00:13.5]} 34... a2 {[%clk 0:01:05.8]} 35. Rd1 {[%clk 0:00:14.1]} 35...
a1=Q {[%clk 0:01:05.5]} 36. Rxa1 {[%clk 0:00:15]} 36... Rxa1 {[%clk 0:01:05.5]}
37. Kh3 {[%clk 0:00:14.2]} 37... Kf6 {[%clk 0:01:01.3]} 38. Kg2 {[%clk
0:00:14.8]} 38... Kf5 {[%clk 0:00:58]} 39. Kh3 {[%clk 0:00:14.7]} 39... f6
{[%clk 0:00:57.8]} 40. Kg2 {[%clk 0:00:15.1]} 40... Ke4 {[%clk 0:00:57.1]} 41.
Nd2+ {[%clk 0:00:12.8]} 41... Kd5 {[%clk 0:00:53.3]} 42. Nf3 {[%clk 0:00:12.9]}
42... Ra3 {[%clk 0:00:53]} 43. g4 {[%clk 0:00:11.5]} 43... Ke4 {[%clk
0:00:52.8]} 44. Nd2+ {[%clk 0:00:11.6]} 44... Kxd4 {[%clk 0:00:52.6]} 45. Nf3+
{[%clk 0:00:10]} 45... Ke4 {[%clk 0:00:52.4]} 46. Kg3 {[%clk 0:00:09.8]} 0-1

[Event "Early-Titled-Tuesday-Blitz-September-05-2023"]
[Site "Chess.com"]
[Date "2023.09.05"]
[Round "1"]
[White "mishanick"]
[Black "Kazmin_Semyon"]
[Result "1-0"]
[WhiteElo "3053"]
[BlackElo "2532"]
[TimeControl "180+1"]
[EndTime "8:06:52 PDT"]
[Termination "mishanick won by resignation"]

1. d4 {[%clk 0:03:00.9]} 1... Nf6 {[%clk 0:02:59.4]} 2. c4 {[%clk 0:03:01.5]}
2... g6 {[%clk 0:02:59]} 3. Nc3 {[%clk 0:03:01.9]} 3... d6 {[%clk 0:02:59.7]} 4.
e4 {[%clk 0:03:02.1]} 4... Bg7 {[%clk 0:03:00.4]} 5. Bd3 {[%clk 0:03:02.8]} 5...
Nc6 {[%clk 0:02:56.1]} 6. Nge2 {[%clk 0:03:02.7]} 6... e5 {[%clk 0:02:54.9]} 7.
d5 {[%clk 0:03:02.3]} 7... Ne7 {[%clk 0:02:55.3]} 8. f3 {[%clk 0:03:01.7]} 8...
O-O {[%clk 0:02:55.2]} 9. Be3 {[%clk 0:03:00.2]} 9... a5 {[%clk 0:02:52.6]} 10.
Qd2 {[%clk 0:03:00.6]} 10... c6 {[%clk 0:02:50.2]} 11. g4 {[%clk 0:03:00.2]}
11... h5 {[%clk 0:02:48.8]} 12. h3 {[%clk 0:02:59.1]} 12... Bd7 {[%clk
0:02:45.5]} 13. Ng3 {[%clk 0:02:56.3]} 13... h4 {[%clk 0:02:37.2]} 14. Nge2
{[%clk 0:02:56.7]} 14... Nh7 {[%clk 0:02:37.5]} 15. O-O-O {[%clk 0:02:51.6]}
15... b5 {[%clk 0:02:32.9]} 16. dxc6 {[%clk 0:02:50.8]} 16... Nxc6 {[%clk
0:02:33.8]} 17. cxb5 {[%clk 0:02:51.3]} 17... Nb4 {[%clk 0:02:33.2]} 18. a3
{[%clk 0:02:43]} 18... Nxd3+ {[%clk 0:02:29.5]} 19. Qxd3 {[%clk 0:02:43.9]}
19... Qf6 {[%clk 0:02:12.8]} 20. Rhf1 {[%clk 0:02:25.8]} 20... Be6 {[%clk
0:02:10.2]} 21. Nd5 {[%clk 0:02:18.7]} 21... Qd8 {[%clk 0:02:05]} 22. Kb1 {[%clk
0:02:18.5]} 22... Nf6 {[%clk 0:02:01.7]} 23. Nxf6+ {[%clk 0:02:18.4]} 23... Bxf6
{[%clk 0:02:02.1]} 24. Qxd6 {[%clk 0:02:16.3]} 24... Qc8 {[%clk 0:01:57]} 25.
Nc3 {[%clk 0:02:14.7]} 25... Qc4 {[%clk 0:01:42.6]} 26. Nd5 {[%clk 0:02:10.8]}
26... Bg7 {[%clk 0:01:36.2]} 27. Qc6 {[%clk 0:02:08]} 27... Qe2 {[%clk
0:01:24.4]} 28. Qc2 {[%clk 0:01:36.1]} 28... Qxb5 {[%clk 0:01:02]} 29. Nc7
{[%clk 0:01:35.6]} 29... Qb7 {[%clk 0:00:51.3]} 30. Nxe6 {[%clk 0:01:34.2]}
30... fxe6 {[%clk 0:00:50.3]} 31. Qc4 {[%clk 0:01:34.5]} 31... Qf7 {[%clk
0:00:33.7]} 32. Rf2 {[%clk 0:01:31.8]} 32... Rfc8 {[%clk 0:00:34.1]} 33. Qa4
{[%clk 0:01:31.6]} 33... Bf8 {[%clk 0:00:33.2]} 34. Qd7 {[%clk 0:01:26.5]} 34...
Rc7 {[%clk 0:00:22.3]} 35. Qxf7+ {[%clk 0:01:26.1]} 35... Rxf7 {[%clk
0:00:23.2]} 36. Ka2 {[%clk 0:01:25.4]} 36... a4 {[%clk 0:00:20.6]} 37. Rc1
{[%clk 0:01:25.3]} 37... Ra6 {[%clk 0:00:13.9]} 38. Rc8 {[%clk 0:01:24.3]} 38...
Kg7 {[%clk 0:00:14.5]} 39. Bd2 {[%clk 0:01:21.9]} 39... Bd6 {[%clk 0:00:07.9]}
40. Bc3 {[%clk 0:01:22.1]} 40... Kf6 {[%clk 0:00:04.3]} 41. f4 {[%clk 0:01:21]}
41... Ke7 {[%clk 0:00:04]} 42. f5 {[%clk 0:01:02.5]} 42... exf5 {[%clk
0:00:04.9]} 43. exf5 {[%clk 0:01:02.7]} 43... gxf5 {[%clk 0:00:05.8]} 44. gxf5
{[%clk 0:01:03.5]} 44... e4 {[%clk 0:00:06.4]} 45. Re2 {[%clk 0:01:03.7]} 45...
Rxf5 {[%clk 0:00:06.5]} 46. Rxe4+ {[%clk 0:01:04.3]} 46... Kd7 {[%clk
0:00:07.4]} 47. Rh8 {[%clk 0:01:03.4]} 47... Bg3 {[%clk 0:00:07.9]} 48. Rh7+
{[%clk 0:01:03.9]} 48... Kd6 {[%clk 0:00:07.3]} 49. Rh6+ {[%clk 0:01:04.3]}
49... Kd5 {[%clk 0:00:07.8]} 50. Rd4+ {[%clk 0:01:05]} 50... Kc5 {[%clk
0:00:07.6]} 51. Rxa6 {[%clk 0:01:05.9]} 1-0

[Event "Early-Titled-Tuesday-Blitz-September-05-2023"]
[Site "Chess.com"]
[Date "2023.09.05"]
[Round "1"]
[White "Haykoooo0o"]
[Black "baki83"]
[Result "0-1"]
[WhiteElo "2463"]
[BlackElo "2828"]
[TimeControl "180+1"]
[EndTime "8:06:55 PDT"]
[Termination "baki83 won on time"]

1. d4 {[%clk 0:02:34.6]} 1... d5 {[%clk 0:02:57.6]} 2. Nf3 {[%clk 0:02:33.6]}
2... Nf6 {[%clk 0:02:57.3]} 3. Bf4 {[%clk 0:02:32.8]} 3... Bf5 {[%clk
0:02:55.8]} 4. e3 {[%clk 0:02:30.3]} 4... e6 {[%clk 0:02:56]} 5. c4 {[%clk
0:02:18.3]} 5... Bxb1 {[%clk 0:02:53.1]} 6. Rxb1 {[%clk 0:02:12.6]} 6... Bb4+
{[%clk 0:02:52.2]} 7. Ke2 {[%clk 0:02:10.8]} 7... dxc4 {[%clk 0:02:45.9]} 8. Qc2
{[%clk 0:02:00.1]} 8... b5 {[%clk 0:02:32.2]} 9. b3 {[%clk 0:01:50.8]} 9... Nd5
{[%clk 0:02:26]} 10. Ne5 {[%clk 0:00:58.5]} 10... f6 {[%clk 0:02:02.5]} 11. bxc4
{[%clk 0:00:42.9]} 11... Nc3+ {[%clk 0:02:02.3]} 12. Kf3 {[%clk 0:00:42]} 12...
Nxb1 {[%clk 0:01:59.8]} 13. Nd3 {[%clk 0:00:40.8]} 13... Nd2+ {[%clk 0:01:58.1]}
14. Ke2 {[%clk 0:00:38.8]} 14... Ba5 {[%clk 0:01:56.1]} 15. cxb5 {[%clk
0:00:32.4]} 15... Ne4 {[%clk 0:01:45.9]} 16. f3 {[%clk 0:00:29.2]} 16... Nd6
{[%clk 0:01:45.6]} 17. Nc5 {[%clk 0:00:26.4]} 17... Qe7 {[%clk 0:01:40]} 18. Kf2
{[%clk 0:00:23.7]} 18... Bb6 {[%clk 0:01:39.6]} 19. h4 {[%clk 0:00:19.5]} 19...
e5 {[%clk 0:01:33.9]} 20. dxe5 {[%clk 0:00:19.6]} 20... Bxc5 {[%clk 0:01:33.7]}
21. exd6 {[%clk 0:00:17.1]} 21... Bxd6 {[%clk 0:01:33]} 22. Bxd6 {[%clk
0:00:15.8]} 22... cxd6 {[%clk 0:01:26.2]} 23. Bc4 {[%clk 0:00:13.5]} 23... Nd7
{[%clk 0:01:24.7]} 24. Bd5 {[%clk 0:00:10.1]} 24... Rd8 {[%clk 0:01:23.4]} 25.
h5 {[%clk 0:00:10.2]} 25... Nc5 {[%clk 0:01:22.7]} 26. h6 {[%clk 0:00:09.1]}
26... g6 {[%clk 0:01:18.5]} 27. Rh4 {[%clk 0:00:09.3]} 27... f5 {[%clk
0:01:15.3]} 28. Rd4 {[%clk 0:00:06.3]} 28... Qf6 {[%clk 0:01:09.3]} 29. Bc6+
{[%clk 0:00:05.9]} 29... Ke7 {[%clk 0:01:09.3]} 30. Rd5 {[%clk 0:00:06]} 30...
Qh4+ {[%clk 0:00:58.1]} 31. Ke2 {[%clk 0:00:03.7]} 31... Qb4 {[%clk 0:00:55]}
32. Kf2 {[%clk 0:00:02.1]} 32... Rhf8 {[%clk 0:00:51]} 33. Rd4 {[%clk
0:00:02.4]} 33... Qa5 {[%clk 0:00:48.8]} 34. Qb2 {[%clk 0:00:02.9]} 34... Rf6
{[%clk 0:00:47.1]} 35. Rd5 {[%clk 0:00:02.5]} 35... Rdf8 {[%clk 0:00:36.4]} 0-1

[Event "Early-Titled-Tuesday-Blitz-September-05-2023"]
[Site "Chess.com"]
[Date "2023.09.05"]
[Round "1"]
[White "mamey78"]
[Black "expii"]
[Result "1-0"]
[WhiteElo "2603"]
[BlackElo "2240"]
[TimeControl "180+1"]
[EndTime "8:06:55 PDT"]
[Termination "mamey78 won by checkmate"]

1. e4 {[%clk 0:03:00.9]} 1... c5 {[%clk 0:03:00]} 2. Nf3 {[%clk 0:03:00.8]} 2...
d6 {[%clk 0:03:00.5]} 3. d4 {[%clk 0:03:00.8]} 3... cxd4 {[%clk 0:03:01.4]} 4.
Nxd4 {[%clk 0:03:01.4]} 4... Nf6 {[%clk 0:03:01.4]} 5. Nc3 {[%clk 0:03:01.7]}
5... g6 {[%clk 0:03:01.4]} 6. Be3 {[%clk 0:03:01.7]} 6... Bg7 {[%clk 0:03:01.8]}
7. f3 {[%clk 0:03:01.9]} 7... O-O {[%clk 0:03:02.2]} 8. Qd2 {[%clk 0:03:02.3]}
8... Nc6 {[%clk 0:03:02.5]} 9. Bc4 {[%clk 0:03:02]} 9... Bd7 {[%clk 0:03:02.2]}
10. h4 {[%clk 0:03:02.3]} 10... h5 {[%clk 0:03:01.3]} 11. O-O-O {[%clk
0:03:01.8]} 11... Rc8 {[%clk 0:03:01.3]} 12. Bb3 {[%clk 0:03:02.1]} 12... Ne5
{[%clk 0:03:00.6]} 13. Kb1 {[%clk 0:03:02.2]} 13... a6 {[%clk 0:02:50.4]} 14. g4
{[%clk 0:02:50.8]} 14... b5 {[%clk 0:02:42.2]} 15. Nd5 {[%clk 0:02:43.5]} 15...
Nxd5 {[%clk 0:02:31.9]} 16. Bxd5 {[%clk 0:02:41.8]} 16... e6 {[%clk 0:02:13.7]}
17. Bb3 {[%clk 0:02:41.3]} 17... a5 {[%clk 0:02:07.1]} 18. a3 {[%clk 0:02:25.8]}
18... b4 {[%clk 0:02:00]} 19. a4 {[%clk 0:02:18.4]} 19... hxg4 {[%clk
0:01:18.8]} 20. h5 {[%clk 0:02:18]} 20... Nc4 {[%clk 0:01:10.6]} 21. Bxc4 {[%clk
0:02:13.7]} 21... Rxc4 {[%clk 0:01:11.5]} 22. hxg6 {[%clk 0:02:09.9]} 22... fxg6
{[%clk 0:01:10.8]} 23. Qh2 {[%clk 0:02:01.3]} 23... Qf6 {[%clk 0:00:59.7]} 24.
f4 {[%clk 0:02:01.3]} 24... Bxa4 {[%clk 0:00:43.8]} 25. e5 {[%clk 0:01:38.5]}
25... dxe5 {[%clk 0:00:17.4]} 26. fxe5 {[%clk 0:01:38.4]} 26... Qxe5 {[%clk
0:00:18.3]} 27. Qh7+ {[%clk 0:01:38.4]} 27... Kf7 {[%clk 0:00:18.7]} 28. Rhf1+
{[%clk 0:01:35.8]} 28... Ke7 {[%clk 0:00:18.5]} 29. Bg5+ {[%clk 0:01:27.1]}
29... Ke8 {[%clk 0:00:16.1]} 30. Qxg6+ {[%clk 0:01:25.8]} 30... Kd7 {[%clk
0:00:13.4]} 31. Nf3+ {[%clk 0:01:20.8]} 31... Kc7 {[%clk 0:00:11.1]} 32. Nxe5
{[%clk 0:01:19]} 32... Bxc2+ {[%clk 0:00:11.1]} 33. Qxc2 {[%clk 0:01:18]} 33...
Rxc2 {[%clk 0:00:11.4]} 34. Rxf8 {[%clk 0:01:15.1]} 34... Rxb2+ {[%clk
0:00:09.8]} 35. Kxb2 {[%clk 0:01:14.2]} 35... Bxf8 {[%clk 0:00:10.4]} 36. Rd7+
{[%clk 0:01:11.8]} 36... Kb6 {[%clk 0:00:09.9]} 37. Be3+ {[%clk 0:01:09.7]}
37... Bc5 {[%clk 0:00:09.8]} 38. Rd6+ {[%clk 0:01:07.7]} 38... Kb5 {[%clk
0:00:09.7]} 39. Bxc5 {[%clk 0:01:08]} 39... Kxc5 {[%clk 0:00:10.1]} 40. Rxe6
{[%clk 0:01:08.9]} 40... Kd5 {[%clk 0:00:09.8]} 41. Re8 {[%clk 0:01:07.9]} 41...
a4 {[%clk 0:00:09]} 42. Nxg4 {[%clk 0:01:08]} 42... Kc4 {[%clk 0:00:07.6]} 43.
Ne3+ {[%clk 0:01:08]} 43... Kb5 {[%clk 0:00:07]} 44. Re5+ {[%clk 0:01:07.5]}
44... Kb6 {[%clk 0:00:06.8]} 45. Nc4+ {[%clk 0:01:07.2]} 45... Kc6 {[%clk
0:00:06.8]} 46. Kc2 {[%clk 0:01:07.3]} 46... Kc7 {[%clk 0:00:04.4]} 47. Ra5
{[%clk 0:01:07.3]} 47... Kc6 {[%clk 0:00:05.3]} 48. Rxa4 {[%clk 0:01:07.2]}
48... Kb7 {[%clk 0:00:06.2]} 49. Kb3 {[%clk 0:01:07.6]} 49... Kc7 {[%clk
0:00:07.1]} 50. Rxb4 {[%clk 0:01:08.1]} 50... Kc6 {[%clk 0:00:08]} 51. Rb6+
{[%clk 0:01:08.1]} 51... Kc7 {[%clk 0:00:08.4]} 52. Kb4 {[%clk 0:01:08.2]} 52...
Kd7 {[%clk 0:00:08.8]} 53. Kc5 {[%clk 0:01:08.6]} 53... Kc7 {[%clk 0:00:09.7]}
54. Rg6 {[%clk 0:01:08]} 54... Kd7 {[%clk 0:00:10.6]} 55. Rd6+ {[%clk
0:01:07.6]} 55... Ke7 {[%clk 0:00:11.5]} 56. Kd5 {[%clk 0:01:08.2]} 56... Kf7
{[%clk 0:00:12.4]} 57. Re6 {[%clk 0:01:08.6]} 57... Kg7 {[%clk 0:00:13.3]} 58.
Ke5 {[%clk 0:01:09.2]} 58... Kf7 {[%clk 0:00:14.2]} 59. Nd6+ {[%clk 0:01:09.5]}
59... Kf8 {[%clk 0:00:15.1]} 60. Kf6 {[%clk 0:01:08.1]} 60... Kg8 {[%clk
0:00:15]} 61. Kg6 {[%clk 0:01:08.1]} 61... Kh8 {[%clk 0:00:15]} 62. Re8# {[%clk
0:01:09]} 1-0

[Event "Early-Titled-Tuesday-Blitz-September-05-2023"]
[Site "Chess.com"]
[Date "2023.09.05"]
[Round "1"]
[White "Just_Lucky_1"]
[Black "Rsnr"]
[Result "1-0"]
[WhiteElo "2512"]
[BlackElo "2905"]
[TimeControl "180+1"]
[EndTime "8:06:58 PDT"]
[Termination "Just_Lucky_1 won by resignation"]

1. e4 {[%clk 0:03:00.9]} 1... c6 {[%clk 0:02:58.9]} 2. d4 {[%clk 0:02:59.5]}
2... d5 {[%clk 0:02:59.8]} 3. e5 {[%clk 0:02:55.8]} 3... Bf5 {[%clk 0:02:59.1]}
4. h4 {[%clk 0:02:55.3]} 4... Qb6 {[%clk 0:02:52.7]} 5. g4 {[%clk 0:02:51.6]}
5... Bd7 {[%clk 0:02:44.2]} 6. Nc3 {[%clk 0:02:43.7]} 6... e6 {[%clk 0:02:44.5]}
7. h5 {[%clk 0:02:41.2]} 7... c5 {[%clk 0:02:43.9]} 8. Nge2 {[%clk 0:02:25.7]}
8... cxd4 {[%clk 0:02:23.3]} 9. Nxd4 {[%clk 0:02:26.6]} 9... Nc6 {[%clk
0:02:23.6]} 10. Nxc6 {[%clk 0:02:25.3]} 10... bxc6 {[%clk 0:02:24.5]} 11. f4
{[%clk 0:02:20]} 11... Nh6 {[%clk 0:02:02.3]} 12. Bh3 {[%clk 0:02:16.9]} 12...
Bc5 {[%clk 0:01:51.6]} 13. g5 {[%clk 0:02:15.2]} 13... Nf5 {[%clk 0:01:51.6]}
14. Bxf5 {[%clk 0:02:07.5]} 14... exf5 {[%clk 0:01:52.4]} 15. Na4 {[%clk
0:02:07.9]} 15... Qa5+ {[%clk 0:01:52.4]} 16. c3 {[%clk 0:02:07.2]} 16... Be7
{[%clk 0:01:49.1]} 17. b4 {[%clk 0:01:56]} 17... Qb5 {[%clk 0:01:49.8]} 18. Be3
{[%clk 0:01:51.2]} 18... h6 {[%clk 0:01:37.4]} 19. g6 {[%clk 0:01:45.5]} 19...
fxg6 {[%clk 0:01:37.6]} 20. hxg6 {[%clk 0:01:46.4]} 20... O-O {[%clk 0:00:59.3]}
21. Bc5 {[%clk 0:01:43.7]} 21... Rae8 {[%clk 0:00:56.1]} 22. Qd4 {[%clk
0:01:43.4]} 22... a5 {[%clk 0:00:50.2]} 23. Bxe7 {[%clk 0:01:40.4]} 23... Rxe7
{[%clk 0:00:50.5]} 24. Nc5 {[%clk 0:01:40.1]} 24... Be8 {[%clk 0:00:45.5]} 25.
Rg1 {[%clk 0:01:31.1]} 25... Rf6 {[%clk 0:00:41.7]} 26. a4 {[%clk 0:01:21.6]}
26... Qb6 {[%clk 0:00:41.1]} 27. Nb3 {[%clk 0:00:56.4]} 27... Qb8 {[%clk
0:00:28.7]} 28. Nxa5 {[%clk 0:00:50.3]} 28... Bxg6 {[%clk 0:00:28.8]} 29. Kd2
{[%clk 0:00:48.5]} 29... Rfe6 {[%clk 0:00:29.6]} 30. Nb3 {[%clk 0:00:46.6]}
30... Bh5 {[%clk 0:00:27.7]} 31. Nc5 {[%clk 0:00:45.5]} 31... Rg6 {[%clk
0:00:28.6]} 32. Rxg6 {[%clk 0:00:45.6]} 32... Bxg6 {[%clk 0:00:29.5]} 33. Rg1
{[%clk 0:00:46]} 33... Bh5 {[%clk 0:00:30.3]} 34. Qd3 {[%clk 0:00:36.7]} 34...
Bg4 {[%clk 0:00:29.4]} 35. a5 {[%clk 0:00:34]} 35... g5 {[%clk 0:00:29.9]} 36.
a6 {[%clk 0:00:28.1]} 36... gxf4 {[%clk 0:00:28.4]} 37. Qxf5 {[%clk 0:00:28.2]}
1-0

[Event "Early-Titled-Tuesday-Blitz-September-05-2023"]
[Site "Chess.com"]
[Date "2023.09.05"]
[Round "1"]
[White "Chopper1905"]
[Black "Sjakkerntobi"]
[Result "1-0"]
[WhiteElo "2868"]
[BlackElo "2478"]
[TimeControl "180+1"]
[EndTime "8:06:58 PDT"]
[Termination "Chopper1905 won by checkmate"]

1. d4 {[%clk 0:02:56.4]} 1... Nf6 {[%clk 0:02:59.5]} 2. c4 {[%clk 0:02:55.5]}
2... c5 {[%clk 0:03:00.2]} 3. d5 {[%clk 0:02:55.2]} 3... e6 {[%clk 0:03:00.6]}
4. Nc3 {[%clk 0:02:54.9]} 4... exd5 {[%clk 0:03:01.3]} 5. cxd5 {[%clk
0:02:55.8]} 5... d6 {[%clk 0:03:02]} 6. Nf3 {[%clk 0:02:55.2]} 6... g6 {[%clk
0:03:02.6]} 7. Nd2 {[%clk 0:02:55.5]} 7... Bg7 {[%clk 0:03:03]} 8. e4 {[%clk
0:02:56.2]} 8... O-O {[%clk 0:03:03.2]} 9. Be2 {[%clk 0:02:56.9]} 9... Re8
{[%clk 0:03:02.7]} 10. O-O {[%clk 0:02:57.3]} 10... Nbd7 {[%clk 0:02:58.6]} 11.
a4 {[%clk 0:02:56.1]} 11... Ne5 {[%clk 0:02:56.9]} 12. h3 {[%clk 0:02:56.2]}
12... g5 {[%clk 0:02:56]} 13. Re1 {[%clk 0:02:17.4]} 13... a6 {[%clk 0:02:53]}
14. Nf1 {[%clk 0:02:13.7]} 14... h6 {[%clk 0:02:51.9]} 15. Ng3 {[%clk
0:02:07.4]} 15... Rb8 {[%clk 0:02:51.2]} 16. Qc2 {[%clk 0:02:04.3]} 16... Bd7
{[%clk 0:02:25.1]} 17. a5 {[%clk 0:02:03.9]} 17... Ng6 {[%clk 0:02:19.3]} 18.
Nd1 {[%clk 0:01:59.7]} 18... Bb5 {[%clk 0:02:15.5]} 19. Ne3 {[%clk 0:01:54.8]}
19... Bxe2 {[%clk 0:02:14.4]} 20. Rxe2 {[%clk 0:01:55.7]} 20... Nf4 {[%clk
0:02:14.6]} 21. Re1 {[%clk 0:01:55.4]} 21... Nd7 {[%clk 0:02:02.9]} 22. Ngf5
{[%clk 0:01:49.5]} 22... Ne5 {[%clk 0:02:01.4]} 23. Ra3 {[%clk 0:01:40.8]} 23...
b5 {[%clk 0:01:48.3]} 24. axb6 {[%clk 0:01:40.2]} 24... Rxb6 {[%clk 0:01:47.8]}
25. Bd2 {[%clk 0:01:34.4]} 25... Kh7 {[%clk 0:01:38.3]} 26. Ba5 {[%clk
0:01:30.4]} 26... Bf6 {[%clk 0:01:32.1]} 27. Rb3 {[%clk 0:01:24.1]} 27... Rxb3
{[%clk 0:00:55.5]} 28. Bxd8 {[%clk 0:01:23.4]} 28... Rxb2 {[%clk 0:00:55.7]} 29.
Qxb2 {[%clk 0:01:03.5]} 29... Nf3+ {[%clk 0:00:29.3]} 30. gxf3 {[%clk
0:01:04.4]} 30... Bxb2 {[%clk 0:00:29.8]} 31. Bc7 {[%clk 0:00:57.2]} 31... Nxh3+
{[%clk 0:00:28.7]} 32. Kf1 {[%clk 0:00:56.8]} 32... Nf4 {[%clk 0:00:23]} 33. Nc4
{[%clk 0:00:56.8]} 33... Bc3 {[%clk 0:00:21.4]} 34. Rc1 {[%clk 0:00:56.3]} 34...
Bf6 {[%clk 0:00:19.1]} 35. Ncxd6 {[%clk 0:00:55.6]} 35... Rf8 {[%clk 0:00:19.6]}
36. Rxc5 {[%clk 0:00:53.3]} 36... h5 {[%clk 0:00:18.2]} 37. Rc6 {[%clk 0:00:48]}
37... Be5 {[%clk 0:00:16.2]} 38. Nxf7 {[%clk 0:00:44.3]} 38... Bxc7 {[%clk
0:00:15.2]} 39. Rxc7 {[%clk 0:00:45.2]} 39... Kg6 {[%clk 0:00:12]} 40. Ne5+
{[%clk 0:00:45]} 40... Kf6 {[%clk 0:00:12.6]} 41. Nd7+ {[%clk 0:00:42.8]} 41...
Kg6 {[%clk 0:00:11.5]} 42. Nxf8+ {[%clk 0:00:41.4]} 42... Kf6 {[%clk 0:00:11.4]}
43. Nd7+ {[%clk 0:00:40.9]} 43... Kg6 {[%clk 0:00:11.7]} 44. Rc6+ {[%clk
0:00:40]} 44... Kf7 {[%clk 0:00:12]} 45. Ne5+ {[%clk 0:00:40.3]} 45... Ke8
{[%clk 0:00:11.6]} 46. Rc8# {[%clk 0:00:40.5]} 1-0